[Event "Late-Titled-Tuesday-Blitz-September-19-2023"]
[Site "Chess.com"]
[Date "2023.09.19"]
[Round "4"]
[White "Chessbard1972"]
[Black "AyMitecK"]
[Result "0-1"]
[WhiteElo "2364"]
[BlackElo "2510"]
[TimeControl "180+1"]
[EndTime "14:35:26 PDT"]
[Termination "AyMitecK won by checkmate"]

1. e4 {[%clk 0:03:00.9]} 1... e6 {[%clk 0:03:00]} 2. d4 {[%clk 0:02:59.4]} 2...
d5 {[%clk 0:02:59.8]} 3. e5 {[%clk 0:03:00.3]} 3... c5 {[%clk 0:02:59.5]} 4. c3
{[%clk 0:02:59.2]} 4... Nc6 {[%clk 0:03:00.4]} 5. Nf3 {[%clk 0:02:59.4]} 5...
Qb6 {[%clk 0:03:00]} 6. a3 {[%clk 0:02:59.6]} 6... Nh6 {[%clk 0:02:57.4]} 7. b4
{[%clk 0:02:58.5]} 7... cxd4 {[%clk 0:02:56.8]} 8. cxd4 {[%clk 0:02:59]} 8...
Nf5 {[%clk 0:02:56.7]} 9. Bb2 {[%clk 0:02:59.4]} 9... Bd7 {[%clk 0:02:56.4]} 10.
g4 {[%clk 0:02:54.9]} 10... Nh6 {[%clk 0:02:55.9]} 11. h3 {[%clk 0:02:52]} 11...
f6 {[%clk 0:02:54.2]} 12. exf6 {[%clk 0:02:49.4]} 12... gxf6 {[%clk 0:02:53.8]}
13. Nc3 {[%clk 0:02:49]} 13... Nf7 {[%clk 0:02:52.4]} 14. Na4 {[%clk 0:02:48.2]}
14... Qc7 {[%clk 0:02:50.7]} 15. Rc1 {[%clk 0:02:47.5]} 15... Qf4 {[%clk
0:02:50.1]} 16. Nc5 {[%clk 0:02:39.6]} 16... Bxc5 {[%clk 0:02:48.7]} 17. dxc5
{[%clk 0:02:35.3]} 17... Nfe5 {[%clk 0:02:43.6]} 18. Be2 {[%clk 0:02:28.5]}
18... h5 {[%clk 0:02:40.3]} 19. Nxe5 {[%clk 0:02:27]} 19... fxe5 {[%clk
0:02:38.9]} 20. b5 {[%clk 0:02:23.7]} 20... Nd4 {[%clk 0:02:38.1]} 21. Bxd4
{[%clk 0:02:21.1]} 21... exd4 {[%clk 0:02:39]} 22. c6 {[%clk 0:02:17.2]} 22...
bxc6 {[%clk 0:02:38.1]} 23. bxc6 {[%clk 0:02:16.9]} 23... Bc8 {[%clk 0:02:38.3]}
24. Qd2 {[%clk 0:02:09.7]} 24... Qxd2+ {[%clk 0:02:33.2]} 25. Kxd2 {[%clk
0:02:09.6]} 25... hxg4 {[%clk 0:02:32.9]} 26. hxg4 {[%clk 0:02:05]} 26... Rxh1
{[%clk 0:02:31.7]} 27. Rxh1 {[%clk 0:02:04.2]} 27... Ke7 {[%clk 0:02:31.9]} 28.
Rh8 {[%clk 0:01:49.6]} 28... Rb8 {[%clk 0:02:31.3]} 29. Kc2 {[%clk 0:01:46.6]}
29... e5 {[%clk 0:02:26.1]} 30. a4 {[%clk 0:01:40.9]} 30... Bf5+ {[%clk
0:02:25.2]} 31. gxf5 {[%clk 0:01:35.7]} 31... Rxh8 {[%clk 0:02:26.1]} 32. f6+
{[%clk 0:01:28.7]} 32... Kd6 {[%clk 0:02:23.4]} 33. Bb5 {[%clk 0:01:21.6]} 33...
Rf8 {[%clk 0:02:21]} 34. Kd2 {[%clk 0:01:14.8]} 34... Rxf6 {[%clk 0:02:20.5]}
35. Ke2 {[%clk 0:01:15.6]} 35... Rf8 {[%clk 0:02:18.5]} 36. f3 {[%clk
0:01:12.5]} 36... Ra8 {[%clk 0:02:18.1]} 37. Ba6 {[%clk 0:01:06]} 37... Kxc6
{[%clk 0:02:17.6]} 38. Kd3 {[%clk 0:01:05.5]} 38... Kc5 {[%clk 0:02:16.8]} 39.
Kd2 {[%clk 0:01:01.3]} 39... Rf8 {[%clk 0:02:17.7]} 40. Ke2 {[%clk 0:01:01.2]}
40... Rf6 {[%clk 0:02:18]} 41. Bb5 {[%clk 0:01:00.8]} 41... e4 {[%clk
0:02:18.3]} 42. fxe4 {[%clk 0:01:00.2]} 42... dxe4 {[%clk 0:02:19.2]} 43. Be8
{[%clk 0:00:52.8]} 43... Rh6 {[%clk 0:02:18.9]} 44. Kf2 {[%clk 0:00:50.6]} 44...
e3+ {[%clk 0:02:18.6]} 45. Kf3 {[%clk 0:00:50.3]} 45... e2 {[%clk 0:02:18.4]}
46. Kxe2 {[%clk 0:00:48.5]} 46... Re6+ {[%clk 0:02:17.9]} 47. Kd3 {[%clk
0:00:49.4]} 47... Rxe8 {[%clk 0:02:18.5]} 48. a5 {[%clk 0:00:49.2]} 48... Re3+
{[%clk 0:02:19.4]} 49. Kd2 {[%clk 0:00:48.5]} 49... Rh3 {[%clk 0:02:20.3]} 50.
a6 {[%clk 0:00:48.5]} 50... Kc4 {[%clk 0:02:21.2]} 51. Kc2 {[%clk 0:00:48.1]}
51... Rh2+ {[%clk 0:02:22.1]} 52. Kd1 {[%clk 0:00:48.2]} 52... d3 {[%clk
0:02:23]} 53. Ke1 {[%clk 0:00:47.6]} 53... Kd4 {[%clk 0:02:23.9]} 54. Kd1 {[%clk
0:00:47.8]} 54... Ke3 {[%clk 0:02:24.5]} 55. Kc1 {[%clk 0:00:46.6]} 55... d2+
{[%clk 0:02:24.9]} 56. Kc2 {[%clk 0:00:45.5]} 56... d1=Q+ {[%clk 0:02:25.8]} 57.
Kxd1 {[%clk 0:00:45]} 57... Rg2 {[%clk 0:02:25.9]} 58. Kc1 {[%clk 0:00:43.8]}
58... Kd3 {[%clk 0:02:26.4]} 59. Kb1 {[%clk 0:00:44.2]} 59... Kc3 {[%clk
0:02:26.9]} 60. Ka1 {[%clk 0:00:44.9]} 60... Kb3 {[%clk 0:02:27.3]} 61. Kb1
{[%clk 0:00:45.4]} 61... Rg1# {[%clk 0:02:28.2]} 0-1

[Event "Late-Titled-Tuesday-Blitz-September-19-2023"]
[Site "Chess.com"]
[Date "2023.09.19"]
[Round "4"]
[White "oskariot"]
[Black "SantoBlue"]
[Result "0-1"]
[WhiteElo "2725"]
[BlackElo "2954"]
[TimeControl "180+1"]
[EndTime "14:35:37 PDT"]
[Termination "SantoBlue won by resignation"]

1. e4 {[%clk 0:03:00.9]} 1... d6 {[%clk 0:02:55]} 2. d4 {[%clk 0:03:00.9]} 2...
Nf6 {[%clk 0:02:54.1]} 3. f3 {[%clk 0:03:01.5]} 3... e6 {[%clk 0:02:52]} 4. c4
{[%clk 0:02:59.9]} 4... c5 {[%clk 0:02:52.1]} 5. dxc5 {[%clk 0:02:48.9]} 5...
dxc5 {[%clk 0:02:52]} 6. Qxd8+ {[%clk 0:02:49.3]} 6... Kxd8 {[%clk 0:02:52.9]}
7. Nc3 {[%clk 0:02:49.4]} 7... Nc6 {[%clk 0:02:53.3]} 8. Be3 {[%clk 0:02:47.4]}
8... Nd4 {[%clk 0:02:50.6]} 9. O-O-O {[%clk 0:02:37.4]} 9... e5 {[%clk
0:02:50.8]} 10. Nd5 {[%clk 0:02:23]} 10... Nxd5 {[%clk 0:02:50.5]} 11. cxd5
{[%clk 0:02:20.1]} 11... Bd6 {[%clk 0:02:51.1]} 12. Bd3 {[%clk 0:02:12.4]} 12...
b5 {[%clk 0:02:51]} 13. Bxd4 {[%clk 0:02:05.8]} 13... cxd4 {[%clk 0:02:48.4]}
14. Bxb5 {[%clk 0:02:06]} 14... Bb7 {[%clk 0:02:42.7]} 15. Kb1 {[%clk
0:01:57.6]} 15... Rb8 {[%clk 0:02:43]} 16. Bc4 {[%clk 0:01:35.2]} 16... Bc8
{[%clk 0:02:43]} 17. Ne2 {[%clk 0:01:32.6]} 17... Bd7 {[%clk 0:02:43.5]} 18. Nc1
{[%clk 0:01:25.5]} 18... Ke7 {[%clk 0:02:43.7]} 19. Nd3 {[%clk 0:01:17.8]} 19...
a5 {[%clk 0:02:43.9]} 20. Rc1 {[%clk 0:01:13.5]} 20... a4 {[%clk 0:02:44.2]} 21.
Rc2 {[%clk 0:01:14.2]} 21... f5 {[%clk 0:02:42.6]} 22. Re1 {[%clk 0:01:13.5]}
22... fxe4 {[%clk 0:02:40.6]} 23. Rxe4 {[%clk 0:01:11.1]} 23... Bf5 {[%clk
0:02:40.5]} 24. Nf2 {[%clk 0:01:11.8]} 24... a3 {[%clk 0:02:35.4]} 25. b3 {[%clk
0:01:10]} 25... h5 {[%clk 0:02:31]} 26. Bd3 {[%clk 0:01:09.6]} 26... Bxe4 {[%clk
0:02:29]} 27. Nxe4 {[%clk 0:00:58.9]} 27... Rbc8 {[%clk 0:02:29.3]} 28. Bc4
{[%clk 0:00:54.9]} 28... h4 {[%clk 0:02:24.3]} 29. h3 {[%clk 0:00:54.8]} 29...
Bb4 {[%clk 0:02:22.4]} 30. Kc1 {[%clk 0:00:52.3]} 30... Kf7 {[%clk 0:02:18.4]}
31. Kd1 {[%clk 0:00:19.1]} 31... Kg6 {[%clk 0:02:13.7]} 32. Ke2 {[%clk
0:00:19.2]} 32... Kf5 {[%clk 0:02:13.4]} 33. d6 {[%clk 0:00:14]} 33... Rhd8
{[%clk 0:02:07]} 34. d7 {[%clk 0:00:13.8]} 34... d3+ {[%clk 0:02:04.5]} 35. Bxd3
{[%clk 0:00:13.2]} 35... Rxc2+ {[%clk 0:02:04.9]} 36. Bxc2 {[%clk 0:00:13.7]}
36... Kf4 {[%clk 0:02:05.2]} 37. Kd3 {[%clk 0:00:07.4]} 37... Rxd7+ {[%clk
0:02:04]} 38. Kc4 {[%clk 0:00:08.1]} 38... Rc7+ {[%clk 0:02:04.5]} 39. Kb5
{[%clk 0:00:08.8]} 39... Rxc2 {[%clk 0:02:04.7]} 0-1

[Event "Late-Titled-Tuesday-Blitz-September-19-2023"]
[Site "Chess.com"]
[Date "2023.09.19"]
[Round "4"]
[White "ChessWarrior7197"]
[Black "ValeriyGrinev"]
[Result "1-0"]
[WhiteElo "3062"]
[BlackElo "2565"]
[TimeControl "180+1"]
[EndTime "14:35:43 PDT"]
[Termination "ChessWarrior7197 won by resignation"]

1. d4 {[%clk 0:03:00.9]} 1... Nf6 {[%clk 0:02:59.2]} 2. c4 {[%clk 0:03:00.2]}
2... e6 {[%clk 0:02:59.5]} 3. Nc3 {[%clk 0:02:59.7]} 3... d5 {[%clk 0:02:58.3]}
4. Nf3 {[%clk 0:02:58.5]} 4... c6 {[%clk 0:02:56.2]} 5. e3 {[%clk 0:02:56.3]}
5... Nbd7 {[%clk 0:02:54.3]} 6. Qc2 {[%clk 0:02:48.2]} 6... Bd6 {[%clk
0:02:48.9]} 7. g4 {[%clk 0:02:45.6]} 7... h6 {[%clk 0:02:39.4]} 8. Rg1 {[%clk
0:02:33.1]} 8... Qe7 {[%clk 0:02:13.2]} 9. Be2 {[%clk 0:02:19.2]} 9... dxc4
{[%clk 0:01:59.8]} 10. e4 {[%clk 0:02:19.6]} 10... e5 {[%clk 0:01:58.5]} 11. Be3
{[%clk 0:02:18.4]} 11... b5 {[%clk 0:01:50]} 12. O-O-O {[%clk 0:02:09.8]} 12...
Bb7 {[%clk 0:01:46]} 13. dxe5 {[%clk 0:02:06.4]} 13... Nxe5 {[%clk 0:01:43.4]}
14. Nd4 {[%clk 0:02:07]} 14... g6 {[%clk 0:01:41.7]} 15. f4 {[%clk 0:02:05.8]}
15... Nd3+ {[%clk 0:01:38.7]} 16. Bxd3 {[%clk 0:02:05.2]} 16... cxd3 {[%clk
0:01:39.4]} 17. Qxd3 {[%clk 0:02:03.7]} 17... Bc5 {[%clk 0:01:30.9]} 18. e5
{[%clk 0:01:58.4]} 18... Nd7 {[%clk 0:01:26.1]} 19. Ne4 {[%clk 0:01:58.7]} 19...
O-O-O {[%clk 0:01:21.9]} 20. Nxc5 {[%clk 0:01:50]} 20... Nxc5 {[%clk 0:01:21.3]}
21. Qc2 {[%clk 0:01:49.7]} 21... Ne6 {[%clk 0:00:49.6]} 22. Nxb5 {[%clk
0:01:47.4]} 22... c5 {[%clk 0:00:26.2]} 23. Nd6+ {[%clk 0:01:46]} 23... Kb8
{[%clk 0:00:26]} 24. Rd3 {[%clk 0:01:44.8]} 24... Ka8 {[%clk 0:00:21.6]} 25.
Rgd1 {[%clk 0:01:45.4]} 25... Rxd6 {[%clk 0:00:17.8]} 26. exd6 {[%clk
0:01:44.7]} 26... Qf6 {[%clk 0:00:17.1]} 27. Qc3 {[%clk 0:01:44.1]} 27... Qxc3+
{[%clk 0:00:16.6]} 28. Rxc3 {[%clk 0:01:44.5]} 28... Rd8 {[%clk 0:00:16.8]} 29.
f5 {[%clk 0:01:44.9]} 29... gxf5 {[%clk 0:00:16.4]} 30. gxf5 {[%clk 0:01:45.8]}
30... Nd4 {[%clk 0:00:16.7]} 31. Bxd4 {[%clk 0:01:46]} 31... cxd4 {[%clk
0:00:17.6]} 32. Rxd4 {[%clk 0:01:46.7]} 32... Bc8 {[%clk 0:00:16.6]} 33. d7
{[%clk 0:01:45.7]} 33... Bxd7 {[%clk 0:00:16.5]} 34. Rc7 {[%clk 0:01:46]} 34...
Rc8 {[%clk 0:00:16.7]} 35. Rxd7 {[%clk 0:01:45.9]} 35... Rxc7+ {[%clk 0:00:17]}
36. Rxc7 {[%clk 0:01:46.8]} 36... Kb8 {[%clk 0:00:17.5]} 37. Rxf7 {[%clk
0:01:47.3]} 1-0

[Event "Late-Titled-Tuesday-Blitz-September-19-2023"]
[Site "Chess.com"]
[Date "2023.09.19"]
[Round "4"]
[White "Veleamater"]
[Black "GoldenShare"]
[Result "0-1"]
[WhiteElo "2331"]
[BlackElo "2597"]
[TimeControl "180+1"]
[EndTime "14:35:44 PDT"]
[Termination "GoldenShare won by resignation"]

1. g3 {[%clk 0:03:00.9]} 1... d5 {[%clk 0:03:00.1]} 2. Bg2 {[%clk 0:03:00.1]}
2... Nf6 {[%clk 0:03:00.5]} 3. d3 {[%clk 0:03:00.3]} 3... c6 {[%clk 0:03:01.4]}
4. Nf3 {[%clk 0:03:00.1]} 4... Bg4 {[%clk 0:03:01]} 5. O-O {[%clk 0:03:00.7]}
5... Nbd7 {[%clk 0:03:01.3]} 6. h3 {[%clk 0:03:00.8]} 6... Bxf3 {[%clk
0:03:01.2]} 7. Bxf3 {[%clk 0:02:59.9]} 7... e5 {[%clk 0:03:02.1]} 8. Bg2 {[%clk
0:03:00.4]} 8... Bc5 {[%clk 0:03:00.6]} 9. Nc3 {[%clk 0:03:00.9]} 9... O-O
{[%clk 0:02:58.3]} 10. e4 {[%clk 0:03:00.8]} 10... dxe4 {[%clk 0:02:54.4]} 11.
dxe4 {[%clk 0:03:00.5]} 11... b5 {[%clk 0:02:46]} 12. Kh2 {[%clk 0:02:56.5]}
12... Qe7 {[%clk 0:02:45.7]} 13. g4 {[%clk 0:02:49.6]} 13... Rfd8 {[%clk
0:02:25.5]} 14. g5 {[%clk 0:02:46.7]} 14... Ne8 {[%clk 0:02:25.2]} 15. Qe2
{[%clk 0:02:41.6]} 15... Nf8 {[%clk 0:02:19.4]} 16. h4 {[%clk 0:02:40.5]} 16...
Ne6 {[%clk 0:02:19.4]} 17. Bh3 {[%clk 0:02:35.8]} 17... Nd4 {[%clk 0:02:18]} 18.
Qd1 {[%clk 0:02:28.8]} 18... Nb3 {[%clk 0:02:13.6]} 19. axb3 {[%clk 0:02:28.7]}
19... Rxd1 {[%clk 0:02:13.9]} 20. Rxd1 {[%clk 0:02:29]} 20... Bxf2 {[%clk
0:02:11.5]} 21. Rd7 {[%clk 0:02:20.2]} 21... Qc5 {[%clk 0:02:08.9]} 22. Bd2
{[%clk 0:02:13.7]} 22... Bxh4 {[%clk 0:02:07.1]} 23. Rf1 {[%clk 0:02:12.7]}
23... b4 {[%clk 0:01:57.5]} 24. Ne2 {[%clk 0:02:05.9]} 24... Qxc2 {[%clk
0:01:57.5]} 25. Rfxf7 {[%clk 0:02:04.5]} 25... Qxb3 {[%clk 0:01:49.2]} 26. Rfe7
{[%clk 0:01:56.5]} 26... Qf3 {[%clk 0:01:31.4]} 27. Be6+ {[%clk 0:01:50.1]}
27... Kh8 {[%clk 0:01:13.4]} 28. Rf7 {[%clk 0:01:50]} 28... Qxe2+ {[%clk
0:01:13.1]} 29. Kh3 {[%clk 0:01:50]} 29... Nf6 {[%clk 0:00:56.1]} 30. gxf6
{[%clk 0:01:05.6]} 30... Bxf6 {[%clk 0:00:57]} 31. Rxf6 {[%clk 0:01:06]} 31...
gxf6 {[%clk 0:00:52.9]} 32. Bh6 {[%clk 0:01:03]} 32... Qh5+ {[%clk 0:00:52.8]}
33. Kg3 {[%clk 0:01:01.1]} 33... Qxh6 {[%clk 0:00:53.7]} 0-1

[Event "Late-Titled-Tuesday-Blitz-September-19-2023"]
[Site "Chess.com"]
[Date "2023.09.19"]
[Round "4"]
[White "Dacean99"]
[Black "schachlana"]
[Result "1-0"]
[WhiteElo "2502"]
[BlackElo "2336"]
[TimeControl "180+1"]
[EndTime "14:35:44 PDT"]
[Termination "Dacean99 won by resignation"]

1. d4 {[%clk 0:03:00.9]} 1... Nf6 {[%clk 0:02:59.5]} 2. Nf3 {[%clk 0:03:00.3]}
2... g6 {[%clk 0:03:00.2]} 3. c4 {[%clk 0:02:59.6]} 3... d6 {[%clk 0:03:00.4]}
4. Nc3 {[%clk 0:03:00.2]} 4... Bg7 {[%clk 0:03:01.1]} 5. e4 {[%clk 0:03:00.5]}
5... O-O {[%clk 0:03:01.7]} 6. Be2 {[%clk 0:03:01]} 6... c5 {[%clk 0:03:02.4]}
7. d5 {[%clk 0:03:00.3]} 7... e6 {[%clk 0:03:03]} 8. Bg5 {[%clk 0:02:54.3]} 8...
exd5 {[%clk 0:03:03.2]} 9. Nxd5 {[%clk 0:02:52.4]} 9... Nbd7 {[%clk 0:03:00.3]}
10. O-O {[%clk 0:02:47.5]} 10... h6 {[%clk 0:03:00.3]} 11. Bxf6 {[%clk
0:02:43.4]} 11... Nxf6 {[%clk 0:03:00.2]} 12. Nxf6+ {[%clk 0:02:37.6]} 12...
Qxf6 {[%clk 0:02:52.5]} 13. Rb1 {[%clk 0:02:36.1]} 13... Re8 {[%clk 0:02:49.5]}
14. Bd3 {[%clk 0:02:33.4]} 14... Bg4 {[%clk 0:02:48.8]} 15. h3 {[%clk
0:02:31.5]} 15... Bxf3 {[%clk 0:02:48.8]} 16. Qxf3 {[%clk 0:02:32.4]} 16... Qxf3
{[%clk 0:02:48.7]} 17. gxf3 {[%clk 0:02:33.3]} 17... Be5 {[%clk 0:02:45.4]} 18.
Kg2 {[%clk 0:02:32.2]} 18... g5 {[%clk 0:02:45.2]} 19. Rfd1 {[%clk 0:02:31.4]}
19... Rad8 {[%clk 0:02:44.7]} 20. Be2 {[%clk 0:02:29.6]} 20... Kg7 {[%clk
0:02:43.3]} 21. b4 {[%clk 0:02:24.3]} 21... b6 {[%clk 0:02:42]} 22. bxc5 {[%clk
0:02:23.2]} 22... dxc5 {[%clk 0:02:42.9]} 23. Rd5 {[%clk 0:02:23]} 23... Bd4
{[%clk 0:02:38.8]} 24. a4 {[%clk 0:02:19.9]} 24... Rxd5 {[%clk 0:02:29.5]} 25.
cxd5 {[%clk 0:02:20.8]} 25... f5 {[%clk 0:02:28.6]} 26. Bb5 {[%clk 0:02:09.8]}
26... Rf8 {[%clk 0:02:20.7]} 27. Re1 {[%clk 0:02:01]} 27... fxe4 {[%clk
0:02:15.6]} 28. Rxe4 {[%clk 0:02:01.9]} 28... Rd8 {[%clk 0:02:11.3]} 29. Bc6
{[%clk 0:01:52.6]} 29... Kf7 {[%clk 0:02:02.8]} 30. f4 {[%clk 0:01:50.7]} 30...
Bf6 {[%clk 0:01:59.8]} 31. fxg5 {[%clk 0:01:47.4]} 31... Bxg5 {[%clk 0:01:57.7]}
32. f4 {[%clk 0:01:44.4]} 32... Bf6 {[%clk 0:01:57.5]} 33. Kf3 {[%clk 0:01:44]}
33... Bd4 {[%clk 0:01:54.2]} 34. Re6 {[%clk 0:01:42.1]} 34... Bg7 {[%clk
0:01:52.2]} 35. f5 {[%clk 0:01:40.1]} 35... Bf8 {[%clk 0:01:44.4]} 36. Ke4
{[%clk 0:01:29.7]} 36... Rd6 {[%clk 0:01:43]} 37. Be8+ {[%clk 0:01:22.1]} 37...
Kg8 {[%clk 0:01:34.9]} 38. Ke5 {[%clk 0:01:21]} 38... Rxe6+ {[%clk 0:01:30.4]}
39. fxe6 {[%clk 0:01:21.9]} 39... Bg7+ {[%clk 0:01:27.8]} 40. Kd6 {[%clk
0:01:15.3]} 40... c4 {[%clk 0:01:28.2]} 41. e7 {[%clk 0:01:05.6]} 41... Bf6
{[%clk 0:01:19.2]} 42. Bg6 {[%clk 0:01:04.6]} 1-0

[Event "Late-Titled-Tuesday-Blitz-September-19-2023"]
[Site "Chess.com"]
[Date "2023.09.19"]
[Round "4"]
[White "lamomiajunior"]
[Black "andrzej"]
[Result "1-0"]
[WhiteElo "2651"]
[BlackElo "2466"]
[TimeControl "180+1"]
[EndTime "14:35:50 PDT"]
[Termination "lamomiajunior won by resignation"]

1. d4 {[%clk 0:03:00.9]} 1... d5 {[%clk 0:02:59.6]} 2. Nc3 {[%clk 0:03:00.6]}
2... Nf6 {[%clk 0:02:59.2]} 3. Bf4 {[%clk 0:03:01.2]} 3... c5 {[%clk 0:02:58.6]}
4. e4 {[%clk 0:03:01.9]} 4... Nxe4 {[%clk 0:02:57.8]} 5. Bb5+ {[%clk 0:03:01.6]}
5... Bd7 {[%clk 0:02:43.3]} 6. Nxd5 {[%clk 0:03:01.5]} 6... e5 {[%clk
0:02:14.6]} 7. Bxd7+ {[%clk 0:02:44.4]} 7... Nxd7 {[%clk 0:01:37.1]} 8. dxe5
{[%clk 0:02:41.9]} 8... g5 {[%clk 0:01:19.5]} 9. Qe2 {[%clk 0:02:12.4]} 9...
Qa5+ {[%clk 0:00:58.8]} 10. c3 {[%clk 0:01:53.6]} 10... gxf4 {[%clk 0:00:54.5]}
11. Qxe4 {[%clk 0:01:52.3]} 11... O-O-O {[%clk 0:00:50.8]} 12. Nf3 {[%clk
0:01:47.3]} 12... Qb5 {[%clk 0:00:40.8]} 13. O-O-O {[%clk 0:01:45.5]} 13... h5
{[%clk 0:00:34.1]} 14. Kb1 {[%clk 0:01:35.7]} 14... Rh6 {[%clk 0:00:33.8]} 15.
Rd2 {[%clk 0:01:28.5]} 15... Ra6 {[%clk 0:00:32.9]} 16. Rhd1 {[%clk 0:01:22.1]}
16... Bg7 {[%clk 0:00:18.3]} 17. Nxf4 {[%clk 0:01:15.8]} 17... Ra4 {[%clk
0:00:13.9]} 18. Qf5 {[%clk 0:01:12.8]} 18... Rxf4 {[%clk 0:00:08.4]} 19. Qxf4
{[%clk 0:01:12.3]} 19... Bxe5 {[%clk 0:00:08.8]} 20. Nxe5 {[%clk 0:01:11.8]} 1-0

[Event "Late-Titled-Tuesday-Blitz-September-19-2023"]
[Site "Chess.com"]
[Date "2023.09.19"]
[Round "4"]
[White "Jarming"]
[Black "NowInChess"]
[Result "1-0"]
[WhiteElo "2727"]
[BlackElo "2257"]
[TimeControl "180+1"]
[EndTime "14:35:54 PDT"]
[Termination "Jarming won on time"]

1. e4 {[%clk 0:03:00.9]} 1... e6 {[%clk 0:03:00.3]} 2. d4 {[%clk 0:03:00.5]}
2... d5 {[%clk 0:03:00.8]} 3. Nc3 {[%clk 0:03:01.4]} 3... Nc6 {[%clk 0:03:00.7]}
4. Nf3 {[%clk 0:03:00.4]} 4... Nf6 {[%clk 0:03:00.5]} 5. e5 {[%clk 0:03:00.3]}
5... Ne4 {[%clk 0:03:00.5]} 6. Bd3 {[%clk 0:02:57.7]} 6... Bb4 {[%clk
0:02:59.5]} 7. Bd2 {[%clk 0:02:55.8]} 7... Nxd2 {[%clk 0:02:59.4]} 8. Qxd2
{[%clk 0:02:55.9]} 8... O-O {[%clk 0:02:56.7]} 9. h4 {[%clk 0:02:55.7]} 9... f6
{[%clk 0:02:49.5]} 10. exf6 {[%clk 0:02:55.4]} 10... Qxf6 {[%clk 0:02:44.3]} 11.
O-O-O {[%clk 0:02:55.5]} 11... Qf4 {[%clk 0:02:30.5]} 12. Qxf4 {[%clk
0:02:53.8]} 12... Rxf4 {[%clk 0:02:30.1]} 13. Ne2 {[%clk 0:02:54.7]} 13... Rf6
{[%clk 0:02:14]} 14. c3 {[%clk 0:02:48.7]} 14... Bd6 {[%clk 0:02:13.7]} 15. Bb5
{[%clk 0:02:48.8]} 15... Bd7 {[%clk 0:02:11.7]} 16. Rde1 {[%clk 0:02:48.4]}
16... Raf8 {[%clk 0:01:58.8]} 17. Ng3 {[%clk 0:02:46.4]} 17... Nb8 {[%clk
0:01:42.6]} 18. Bxd7 {[%clk 0:02:43.3]} 18... Nxd7 {[%clk 0:01:42.1]} 19. Re2
{[%clk 0:02:43.4]} 19... h6 {[%clk 0:01:20.9]} 20. Rhe1 {[%clk 0:02:40.8]} 20...
Kf7 {[%clk 0:01:08.3]} 21. Nf1 {[%clk 0:02:34.3]} 21... c5 {[%clk 0:01:03.4]}
22. Ne3 {[%clk 0:02:30.5]} 22... cxd4 {[%clk 0:00:59.3]} 23. cxd4 {[%clk
0:02:31.4]} 23... Bf4 {[%clk 0:00:56.9]} 24. Kb1 {[%clk 0:02:28.9]} 24... Rc8
{[%clk 0:00:46.3]} 25. Nxd5 {[%clk 0:02:22.3]} 25... exd5 {[%clk 0:00:18]} 26.
Re7+ {[%clk 0:02:18.8]} 26... Kf8 {[%clk 0:00:18.6]} 27. Rxd7 {[%clk 0:02:19.7]}
27... Rf7 {[%clk 0:00:17.7]} 28. Rxd5 {[%clk 0:02:16.7]} 28... g6 {[%clk
0:00:11]} 29. a3 {[%clk 0:02:16.4]} 29... Rc4 {[%clk 0:00:10.1]} 30. Re2 {[%clk
0:02:07.3]} 30... Rc1+ {[%clk 0:00:07.5]} 31. Ka2 {[%clk 0:02:06.2]} 31... Rg1
{[%clk 0:00:07.1]} 32. g3 {[%clk 0:02:04.1]} 32... Bxg3 {[%clk 0:00:06.9]} 33.
Ne5 {[%clk 0:01:58.8]} 33... Rxf2 {[%clk 0:00:06.7]} 34. Re3 {[%clk 0:01:54.1]}
34... Bxh4 {[%clk 0:00:06]} 35. Rc3 {[%clk 0:01:46.1]} 35... Rgg2 {[%clk
0:00:02.1]} 36. Nd3 {[%clk 0:01:46.1]} 1-0

[Event "Late-Titled-Tuesday-Blitz-September-19-2023"]
[Site "Chess.com"]
[Date "2023.09.19"]
[Round "4"]
[White "Rodalquilar"]
[Black "kuli4ik"]
[Result "1-0"]
[WhiteElo "2756"]
[BlackElo "2955"]
[TimeControl "180+1"]
[EndTime "14:36:01 PDT"]
[Termination "Rodalquilar won by resignation"]

1. d4 {[%clk 0:03:00.9]} 1... g6 {[%clk 0:02:55.7]} 2. e4 {[%clk 0:03:00.6]}
2... Bg7 {[%clk 0:02:55.7]} 3. Nc3 {[%clk 0:03:01]} 3... a6 {[%clk 0:02:56]} 4.
f4 {[%clk 0:03:00.9]} 4... b5 {[%clk 0:02:55.9]} 5. Nf3 {[%clk 0:03:00.9]} 5...
Bb7 {[%clk 0:02:56.2]} 6. Bd3 {[%clk 0:03:00.2]} 6... d6 {[%clk 0:02:55.9]} 7.
a4 {[%clk 0:03:00.3]} 7... b4 {[%clk 0:02:55.5]} 8. Ne2 {[%clk 0:03:00.8]} 8...
a5 {[%clk 0:02:54]} 9. O-O {[%clk 0:02:59.8]} 9... Ba6 {[%clk 0:02:52.2]} 10. e5
{[%clk 0:02:55.2]} 10... Nh6 {[%clk 0:02:51.1]} 11. Ng3 {[%clk 0:02:55.2]} 11...
e6 {[%clk 0:02:49.8]} 12. Bxa6 {[%clk 0:02:09.2]} 12... Rxa6 {[%clk 0:02:48]}
13. Qe2 {[%clk 0:02:07.2]} 13... O-O {[%clk 0:02:31.4]} 14. h4 {[%clk 0:02:01]}
14... Rc6 {[%clk 0:02:15.5]} 15. h5 {[%clk 0:01:57.7]} 15... Nd7 {[%clk
0:02:13.2]} 16. Ng5 {[%clk 0:01:44.5]} 16... Nf5 {[%clk 0:02:02.8]} 17. hxg6
{[%clk 0:01:42]} 17... Nxg3 {[%clk 0:01:46.4]} 18. Qg4 {[%clk 0:01:40.4]} 18...
Nxf1 {[%clk 0:01:08.2]} 19. Qh5 {[%clk 0:01:34.7]} 19... h6 {[%clk 0:01:07.7]}
20. gxf7+ {[%clk 0:01:34.8]} 20... Rxf7 {[%clk 0:01:01.1]} 21. Qxf7+ {[%clk
0:01:30.8]} 21... Kh8 {[%clk 0:01:01.3]} 22. Qxg7+ {[%clk 0:01:03.1]} 22... Kxg7
{[%clk 0:01:00.6]} 23. Nxe6+ {[%clk 0:01:03.7]} 23... Kg6 {[%clk 0:01:00.8]} 24.
Nxd8 {[%clk 0:01:04]} 24... Rxc2 {[%clk 0:01:01.2]} 25. Kxf1 {[%clk 0:01:03.5]}
25... Nb6 {[%clk 0:00:58.1]} 26. g4 {[%clk 0:00:53.3]} 26... Nd5 {[%clk
0:00:53.6]} 27. f5+ {[%clk 0:00:52]} 27... Kg7 {[%clk 0:00:53.5]} 28. f6+ {[%clk
0:00:49.6]} 28... Kg6 {[%clk 0:00:53.2]} 29. f7 {[%clk 0:00:48.5]} 1-0